Cogmind - Beta 13 @@@ ROGUE MODE // 2024.04.21 @ 22:33:31 Player: Cwaftwer Result: Destroyed by Y-54 Guardian with Gatling Laser Performance ------------- Evolutions (4) 2000 Regions Visited (6) 1200 Robots Destroyed (55) 275 Value Destroyed (1861) 1861 Prototype IDs (5) 100 Alien Tech Used (0) 0 Bonus (0) 0 TOTAL SCORE: 5436 Bonus ------- None Cogmind --------- Core Integrity 0/850 Matter 300/300 Energy 100/100 System Corruption 8% Temperature Hot (232) Movement Core (50) Location -6/Extension Parts ------- > --- POWER (2) -------- (None) > --- PROPULSION (4) --- (None) > --- UTILITY (7) ------ Enhanced Optical Array Core Analyzer > --- WEAPON (2) ------- (None) > --- INVENTORY (5) ---- Gravmag System Advanced Signal Interpreter Core Analyzer Heavy Missile Launcher Heavy Mace Peak State ------------ > --- POWER ------------ Improved Ion Engine > --- PROPULSION ------- Gravmag System Improved Airjet Gravmag Array > --- UTILITY ---------- Improved Cooling System Enhanced Optical Array Signal Interpreter Experimental Targeting Computer Core Analyzer Improved Light Armor Plating Shield Generator > --- WEAPON ----------- Gauss Cannon Heavy Mace > --- INVENTORY -------- Gravmag System Advanced Signal Interpreter Core Analyzer Heavy Missile Launcher Heavy Mace [Rating: 55] Favorites ----------- Power Improved Ion Engine Engine Improved Ion Engine Power Core Light Nuclear Core Propulsion Gravmag System Treads Light Treads Wheel Wheel Hover Unit Gravmag System Utility Improved Cooling System Device Improved Cooling System Storage Huge Storage Unit Processor Improved Terrain Scan Processor Protection Improved Light Armor Plating Weapon Maul Energy Gun Beam Rifle Ballistic Gun High-powered Shotgun Ballistic Cannon Gauss Cannon Impact Weapon Maul Build | -11 -10 -9 -8 -7 -6 -6 ------- Run | Yrd Mat Mat Mat Fac Fac Ext Slots Evolved 8 | . . 2 2 2 2 . Power 1 | . . . 1 . . . Propulsion 2 | . . . 1 . 1 . Utility 5 | . . 2 . 2 1 . Weapon . | . . . . . . . Parts Attached 90 | 2 7 10 19 38 13 1 Power 13 | . 2 1 5 5 . . Engine 11 | . 2 1 5 3 . . Core 2 | . . . . 2 . . Reactor . | . . . . . . . Propulsion 30 | . 2 3 6 16 2 1 Treads 5 | . . 1 3 1 . . Leg . | . . . . . . . Wheel 12 | . 2 2 3 5 . . Hover 13 | . . . . 10 2 1 Flight . | . . . . . . . Utility 28 | . 2 4 3 10 9 . Device 15 | . 1 2 2 6 4 . Storage 1 | . 1 . . . . . Processor 7 | . . 1 1 2 3 . Hackware . | . . . . . . . Protection 5 | . . 1 . 2 2 . Artifact . | . . . . . . . Weapon 19 | 2 1 2 5 7 2 . Energy Gun 4 | 1 1 1 1 . . . Energy Cannon . | . . . . . . . Ballistic Gun 6 | 1 . . 3 2 . . Ballistic Cannon 3 | . . . 1 1 1 . Launcher . | . . . . . . . Special Weapon . | . . . . . . . Impact Weapon 6 | . . 1 . 4 1 . Slashing Weapon . | . . . . . . . Piercing Weapon . | . . . . . . . Special Melee Weapon . | . . . . . . . Unidentified Prototypes 3 | . . . . 1 2 . Parts Lost 50 | . . 6 6 25 4 9 Power 10 | . . 2 1 6 . 1 Propulsion 19 | . . 2 4 10 1 2 Utility 14 | . . . 1 6 3 4 Weapon 7 | . . 2 . 3 . 2 Highest Loss Streak 10 | . . 4 4 10 3 6 To Critical Strikes . | . . . . . . . Average Slot Usage (%) 79 | . 69 72 91 80 81 59 Engine 7 | . 8 7 13 6 6 4 Core 1 | . . . . 2 . . Treads 5 | . . 5 15 5 . . Wheel 4 | . 16 7 10 . . . Hover 9 | . . . . 15 21 11 Device 12 | . 7 15 8 12 12 4 Storage 5 | . 8 11 9 2 . . Processor 15 | . . 4 17 19 23 18 Protection 2 | . . . . 3 5 4 Energy Gun 4 | . 26 10 1 1 . . Ballistic Gun 3 | . 1 . 13 2 . . Ballistic Cannon 1 | . . . 1 . 3 4 Impact Weapon 5 | . . 9 . 5 6 5 Naked Turns . | . . . . . . . Heaviest Build 111 | 3 89 95 111 108 24 22 Greatest Support 66 | 3 20 20 60 66 38 38 Greatest Overweight (x) 27 | . 4 27 9 9 . 4 Average Overweight (x) . | . 1 4 1 . . . Largest Inventory Capacity 25 | 5 25 25 25 25 5 5 Average Capacity 15 | 5 16 25 25 11 5 5 Most Carried 25 | 2 5 16 25 25 5 5 Average Carried 9 | . 2 6 20 10 4 4 Final Capacity 25 | 5 25 25 25 5 5 5 Final Carried 25 | 1 3 16 25 5 5 5 Class Distribution -------------------- 59% | Mutant 27% | Scavenger-Mutant 7% | Scavenger-Assassin 3% | Scavenger-Skirmisher Dominant Class ---------------- Mutant | -10/Materials Scavenger-Mutant | -9/Materials Scavenger-Mutant | -8/Materials Mutant | -7/Factory Mutant | -6/Factory Mutant | -6/Extension Resources | -11 -10 -9 -8 -7 -6 -6 ----------- Run | Yrd Mat Mat Mat Fac Fac Ext Matter Collected 1519 | 220 34 116 339 681 124 5 Remotely . | . . . . . . . Salvage Created 1859 | . 24 472 387 788 188 . Parts 91 | . 4 35 19 28 5 . Haulers Intercepted 2 | . . 1 1 . . . Recyclers Shooed . | . . . . . . . Parts Field Recycled . | . . . . . . . Retrieved Matter . | . . . . . . . Parts Self-Destructed . | . . . . . . . Prevented . | . . . . . . . Kills | -11 -10 -9 -8 -7 -6 -6 ------- Run | Yrd Mat Mat Mat Fac Fac Ext Combat Hostiles Destroyed 43 | . . 9 9 19 6 . Melee 7 | . . 2 . 4 1 . Guns 23 | . . 7 7 9 . . Cannons 4 | . . . 2 . 2 . Classes Destroyed 13 | . 1 9 1 2 . . Worker 5 | . . 2 1 2 . . Builder 2 | . 1 . . 1 . . Hauler 2 | . . 1 1 . . . Recycler 1 | . . 1 . . . . Mechanic 1 | . . 1 . . . . Watcher 1 | . . 1 . . . . Swarmer 12 | . . 3 . 5 4 . Grunt 12 | . . 4 6 2 . . Brawler 1 | . . . 1 . . . Duelist 1 | . . 1 . . . . Sentry 9 | . . 1 2 5 1 . Hunter 2 | . . . . 2 . . Programmer 6 | . . . . 5 1 . Best Kill Streak 6 | . 1 4 4 6 5 . Combat Bots Only 5 | . . 3 3 5 5 . Max Kills in Single Turn 1 | . 1 1 1 1 1 . Gunslinging . | . . . . . . . Exploded . | . . . . . . . Melee 1 | . . 1 . 1 1 . Uniques/NPCs Destroyed . | . . . . . . . Combat | -11 -10 -9 -8 -7 -6 -6 -------- Run | Yrd Mat Mat Mat Fac Fac Ext Hostile Shots Fired 740 | . . 101 44 385 87 123 Missed 201 | . . 15 6 107 27 46 Damage Taken 6517 | . . 918 619 2893 682 1405 Core 1806 | . . 196 72 679 71 788 Absorbed by Shields 142 | . . . . 91 51 . Regen/Repaired (Parts) 276 | . . . . 137 139 . Core Remaining (%) 68 | 100 100 51 86 3 . . Volleys Fired 142 | . 1 41 38 56 6 . Largest 2 | . 2 2 2 2 1 . Hottest 90 | . 90 90 90 90 48 . Shots Fired 226 | . 2 49 72 97 6 . Gun 208 | . 2 49 65 92 . . Cannon 18 | . . . 7 5 6 . Launcher . | . . . . . . . Special . | . . . . . . . Kinetic 143 | . . . 66 71 6 . Thermal 83 | . 2 49 6 26 . . Explosive . | . . . . . . . Electromagnetic . | . . . . . . . Robot Hit Streak 11 | . 1 7 9 11 2 . Robot Miss Streak 4 | . . 3 4 4 2 . Penetration Max . | . . . . . . . Secondary Targets . | . . . . . . . Shots Hit Robots 224 | . 1 36 59 114 14 . Core Hits 85 | . 1 19 30 32 3 . Critical Kills 1 | . . . . 1 . . Critical Parts Destroyed 14 | . . . 1 10 3 . Critical Strikes 19 | . . 2 1 13 3 . Burn 4 | . . 2 . 2 . . Destroy 1 | . . . 1 . . . Smash 14 | . . . . 11 3 . Melee Attacks 118 | . . 7 . 78 18 15 Impact 118 | . . 7 . 78 18 15 Slashing . | . . . . . . . Piercing . | . . . . . . . Sneak Attacks 2 | . . 1 . 1 . . Combat Hostiles . | . . . . . . . Follow-up Attacks . | . . . . . . . Damage Inflicted 5179 | . 12 663 1222 2801 481 . Guns 2792 | . 12 433 1066 1281 . . Cannons 315 | . . . 156 79 80 . Explosions . | . . . . . . . Melee 2065 | . . 230 . 1434 401 . Ramming 7 | . . . . 7 . . Kinetic 2226 | . . . 1166 980 80 . Thermal 881 | . 12 433 56 380 . . Explosive . | . . . . . . . Electromagnetic . | . . . . . . . Impact 2065 | . . 230 . 1434 401 . Slashing . | . . . . . . . Piercing . | . . . . . . . Highest Corruption 9 | . . . 9 5 . 8 Average Corruption 3 | . . . 8 2 . 8 Corruption Purged . | . . . . . . . Corruption Blocked . | . . . . . . . Effects 32 | . . . 13 19 . . Message Errors 10 | . . . 3 7 . . Matter Fused 8 | . . . 4 4 . . Heat Flow Errors 2 | . . . 1 1 . . Energy Discharges 4 | . . . 1 3 . . Parts Rejected 1 | . . . 1 . . . Data Loss (minor) 3 | . . . 1 2 . . Data Loss (major) 2 | . . . 1 1 . . Misfires 1 | . . . 1 . . . Weapon Failures 1 | . . . . 1 . . Overload Shots . | . . . . . . . Overflow Damage 802 | . . 121 . 530 151 . Projectiles . | . . . . . . . Explosions . | . . . . . . . Melee 802 | . . 121 . 530 151 . Knockbacks 13 | . . . 1 10 2 . Impact 11 | . . . . 9 2 . Kinetic 2 | . . . 1 1 . . Secondary . | . . . . . . . Self-Inflicted Damage . | . . . . . . . Shots . | . . . . . . . Rammed 1 | . . . . 1 . . Targets Rammed 1 | . . . . 1 . . Kicked . | . . . . . . . Crushed . | . . . . . . . Highest Temperature 355 | . 15 355 255 170 . 307 Average Temperature 129 | . 10 144 91 47 . 260 Received Heat Transfer 1649 | . . 222 297 576 48 506 Effects 5 | . . 4 1 . . . Energy Bleed 1 | . . 1 . . . . Interference 3 | . . 2 1 . . . Short Circuit 1 | . . 1 . . . . Siege Activations . | . . . . . . . Robots Corrupted . | . . . . . . . Combat Hostiles . | . . . . . . . Parts Fried 11 | . . 2 . 5 4 . Impact Corruptions 35 | . . 3 . 22 10 . Robots Melted . | . . . . . . . Combat Hostiles . | . . . . . . . Parts Melted 5 | . . 3 . 2 . . Heat Transferred 2432 | . 37 1285 148 962 . . Parts Sabotaged . | . . . . . . . Parts Stolen . | . . . . . . . Parts Stripped . | . . . . . . . Power Chain Reactions . | . . . . . . . Alert | -11 -10 -9 -8 -7 -6 -6 ------- Run | Yrd Mat Mat Mat Fac Fac Ext Peak Influence 195 | . 15 137 168 195 149 64 Initial 76 | . . 5 21 76 72 63 Average 80 | . 11 49 86 103 78 44 Maximum Alert Level . | . . . . . . . Low Security (%) 100 | 100 100 100 100 100 100 100 Level 1 . | . . . . . . . Level 2 . | . . . . . . . Level 3 . | . . . . . . . Level 4 . | . . . . . . . Level 5 . | . . . . . . . High Security . | . . . . . . . Max Security . | . . . . . . . Squads Dispatched 21 | . . 2 2 14 3 . Investigation 2 | . . . 1 1 . . Extermination 5 | . . . . 4 1 . Reinforcement 5 | . . 2 1 . 2 . Assault . | . . . . . . . Garrison 9 | . . . . 9 . . Intercept . | . . . . . . . Searches Triggered . | . . . . . . . Construction Impeded . | . . . . . . . Haulers Reinforced . | . . . . . . . Active Scanning Responses . | . . . . . . . Cargo Convoy Interrupts . | . . . . . . . Stealth | -11 -10 -9 -8 -7 -6 -6 --------- Run | Yrd Mat Mat Mat Fac Fac Ext Distress Signals 6 | . . 3 1 2 . . Communications Jammed . | . . . . . . . Distress Signals . | . . . . . . . Times Spotted 77 | . . 20 13 31 9 4 Peak Tracking Total 7 | . . 7 3 5 5 4 Tactical Retreats 6 | . . . 1 5 . . Traps | -11 -10 -9 -8 -7 -6 -6 ------- Run | Yrd Mat Mat Mat Fac Fac Ext Traps Triggered 2 | . . . . 2 . . Indirectly . | . . . . . . . Trap Hack Attempts . | . . . . . . . Triggered . | . . . . . . . Disarmed . | . . . . . . . Reprogrammed . | . . . . . . . Reused . | . . . . . . . Traps Extracted . | . . . . . . . Installed . | . . . . . . . Triggered . | . . . . . . . Machines | -11 -10 -9 -8 -7 -6 -6 ---------- Run | Yrd Mat Mat Mat Fac Fac Ext Machines Disabled 1 | . . . 1 . . . Max in Single Turn 1 | . . . 1 . . . Machines Repaired . | . . . . . . . Machines Dismantled . | . . . . . . . Machines Sabotaged . | . . . . . . . Overloaded Fab Kills . | . . . . . . . Hacking | -11 -10 -9 -8 -7 -6 -6 --------- Run | Yrd Mat Mat Mat Fac Fac Ext Machines Accessed 15 | . 2 . 3 4 6 . Terminals 9 | . 2 . 2 2 3 . Fabricators 1 | . . . . 1 . . Repair Stations 3 | . . . . 1 2 . Recycling Units . | . . . . . . . Scanalyzers 2 | . . . 1 . 1 . Garrison Access . | . . . . . . . Total Hacks 47 | . 4 . 9 14 20 . Successful 26 | . 2 . 7 6 11 . Failed 21 | . 2 . 2 8 9 . Catastrophic 2 | . . . . 1 1 . Database Lockouts . | . . . . . . . Manual . | . . . . . . . Terminals 22 | . 4 . 5 4 9 . Fabricators 3 | . . . . 3 . . Repair Stations 16 | . . . . 7 9 . Recycling Units . | . . . . . . . Scanalyzers 6 | . . . 4 . 2 . Garrison Access . | . . . . . . . Terminal Hacks 11 | . 2 . 3 1 5 . Record 5 | . . . . 1 4 . Prototype ID Bank 1 | . 1 . . . . . Branch Access Points 1 | . . . . . 1 . Alert Level 1 | . . . 1 . . . Locate Traps 1 | . . . 1 . . . Dispatch Records 1 | . . . 1 . . . Zone Layout 1 | . 1 . . . . . Fabricator Hacks . | . . . . . . . Repair Station Hacks 10 | . . . . 5 5 . Scan Component 6 | . . . . 3 3 . Repair 4 | . . . . 2 2 . Recycling Unit Hacks . | . . . . . . . Scanalyzer 5 | . . . 4 . 1 . Insert Component 3 | . . . 2 . 1 . Analyze 2 | . . . 2 . . . Garrison Access Hacks . | . . . . . . . Unauthorized Hacks . | . . . . . . . Terminals . | . . . . . . . Fabricators . | . . . . . . . Repair Stations . | . . . . . . . Recycling Units . | . . . . . . . Scanalyzers . | . . . . . . . Garrison Access . | . . . . . . . Data Cores Recovered . | . . . . . . . Used . | . . . . . . . Hacking Detections 12 | . 1 . 2 4 5 . Full Trace Events 2 | . . . 1 1 . . Feedback Events . | . . . . . . . Feedback Blocked . | . . . . . . . Robot Schematics Acquired . | . . . . . . . Robots Built . | . . . . . . . Authchips . | . . . . . . . Time . | . . . . . . . Total Robot Build Rating . | . . . . . . . Part Schematics Acquired 2 | . . . 2 . . . Parts Built . | . . . . . . . Authchips . | . . . . . . . Time . | . . . . . . . Total Part Build Rating . | . . . . . . . Parts Repaired 4 | . . . . 2 2 . Time 122 | . . . . 58 64 . Parts Recycled . | . . . . . . . Recycled Matter . | . . . . . . . Retrieved Matter . | . . . . . . . Retrieved Components . | . . . . . . . Parts Scanalyzed 2 | . . . 2 . . . Part Schematics Acquired 2 | . . . 2 . . . Parts Damaged . | . . . . . . . Bothacking | -11 -10 -9 -8 -7 -6 -6 ------------ Run | Yrd Mat Mat Mat Fac Fac Ext Used RIF Installer . | . . . . . . . Robots Hacked . | . . . . . . . Non-combat . | . . . . . . . Combat . | . . . . . . . Robot Hacks Applied . | . . . . . . . Relay Couplers Released . | . . . . . . . Fabnet Peak Effective % . | . . . . . . . Robots Rewired . | . . . . . . . Allies Hacked . | . . . . . . . Hacks Repelled . | . . . . . . . Allies | -11 -10 -9 -8 -7 -6 -6 -------- Run | Yrd Mat Mat Mat Fac Fac Ext Total Allies . | . . . . . . . Largest Group . | . . . . . . . Highest-Rated Group . | . . . . . . . Highest-Rated Ally . | . . . . . . . Total Orders . | . . . . . . . Ally Attacks . | . . . . . . . Total Damage . | . . . . . . . Kills . | . . . . . . . Allies Corrupted . | . . . . . . . Allies Melted . | . . . . . . . Intel | -11 -10 -9 -8 -7 -6 -6 ------- Run | Yrd Mat Mat Mat Fac Fac Ext Robot Analysis Total . | . . . . . . . Derelict Logs Recovered . | . . . . . . . Drone Launches . | . . . . . . . Drone Recoveries . | . . . . . . . Exploration | -11 -10 -9 -8 -7 -6 -6 ------------- Run | Yrd Mat Mat Mat Fac Fac Ext Turns Passed 4671 | 28 214 995 682 2044 597 111 Spaces Moved 3152 | 40 233 275 274 1444 784 102 Core 201 | 40 146 7 . 2 . 6 Treads 357 | . . 101 111 145 . . Legs . | . . . . . . . Wheels 435 | . 87 167 163 18 . . Hover 2159 | . . . . 1279 784 96 Flight . | . . . . . . . Fastest Speed 45 | 50 50 140 116 48 45 50 Average Speed 95 | 50 83 297 172 74 47 61 Slowest Speed 1400 | 50 140 1400 240 500 56 250 Overloaded Moves . | . . . . . . . Propulsion Burnouts . | . . . . . . . Robots Hopped . | . . . . . . . Cave-ins Triggered 1 | . . . . . . 1 Exploration Rate (%) 26 | 4 40 26 30 38 22 25 Regions Visited 6 Branch Regions 1 Pre-discovered Areas . | . . . . . . . Known Exits Taken 2 | . . . . 1 1 . Unknown Exits Taken 4 | 1 1 1 1 . . . Scrap Searched . | . . . . . . . Spaces Dug 38 | . . . . 20 5 13 Terrain Destroyed 41 | . . . . 20 8 13 Melee 38 | . . . . 20 5 13 Projectile 3 | . . . . . 3 . AOE . | . . . . . . . Terrain Rammed . | . . . . . . . Walls Destroyed . | . . . . . . . Machines Disabled . | . . . . . . . Actions | -11 -10 -9 -8 -7 -6 -6 --------- Run | Yrd Mat Mat Mat Fac Fac Ext Total 4370 | 48 251 389 411 2168 979 124 Wait 716 | . . 33 55 500 123 5 Move 3145 | 39 232 274 273 1443 783 101 Hop . | . . . . . . . Pick Up 110 | 5 9 22 23 30 21 . Fast Attach . | . . . . . . . Attach 70 | 2 5 8 11 32 11 1 Detach 2 | . . . . 1 . 1 Swap 20 | . 2 2 8 6 2 . Drop 44 | 2 2 2 3 20 15 . Fire 142 | . 1 41 38 56 6 . Melee 118 | . . 7 . 78 18 15 Ram . | . . . . . . . Kick . | . . . . . . . Crush 1 | . . . . 1 . . Escape Stasis 2 | . . . . 1 . 1 Rewire . | . . . . . . . Trap . | . . . . . . . Miscellaneous . | . . . . . . . Route ------- -11/Scrapyard -10/Materials (discovered 2 exits: *Mat / [*Min]) -9/Materials -8/Materials -7/Factory -6/Factory (discovered 4 exits: Low x2 / *Ext x2) -6/Extension History --------- Turn | Location | Event 4 | -11/Scrapyard | Discovered new exit (range 16) 29 | -11/Scrapyard | Entered Materials 56 | -10/Materials | Discovered new exit (range 11) 229 | -10/Materials | Discovered new exit (range 5) 243 | -10/Materials | Entered another Materials area 243 | -9/Materials | Evolved 2 slots: Utility x2 323 | -9/Materials | Build established: Mutant 370 | -9/Materials | Lost 4 parts (1p2n1w) 786 | -9/Materials | Build established: Scavenger-Mutant 1235 | -9/Materials | Discovered new exit (range 3) 1238 | -9/Materials | Entered another Materials area 1238 | -8/Materials | Evolved 2 slots: Power x1, Propulsion x1 1555 | -8/Materials | Lost 4 parts (1p2n1u) 1862 | -8/Materials | Discovered new exit (range 9) 1920 | -8/Materials | Entered Factory 1920 | -7/Factory | Evolved 2 slots: Utility x2 2238 | -7/Factory | Garrison activated, responded to threat 2407 | -7/Factory | Lost 6 parts (2p3n1w) 2520 | -7/Factory | Lost 5 parts (1n2u2w) 2526 | -7/Factory | Core integrity fell below 50% 2538 | -7/Factory | Garrison activated, responded to threat 2583 | -7/Factory | Core integrity fell below 20% 2625 | -7/Factory | Lost 10 parts (2p5n3u) 2854 | -7/Factory | Build established: Mutant 3095 | -7/Factory | Repaired Maul 3126 | -7/Factory | Repaired Hover Unit 3146 | -7/Factory | Garrison activated, responded to threat 3956 | -7/Factory | Discovered new exit (range 3) 3957 | -7/Factory | Identified exit to Factory 3964 | -7/Factory | Entered another Factory area 3964 | -6/Factory | Evolved 2 slots: Propulsion x1, Utility x1 4021 | -6/Factory | Repaired Imp. Light Armor Plating 4084 | -6/Factory | Repaired Hover Unit 4173 | -6/Factory | Found Prototype Processor 4174 | -6/Factory | Identified Exp. Targeting Computer 4430 | -6/Factory | Identified exit to Lower Caves 4430 | -6/Factory | Identified exit to Extension 4561 | -6/Factory | Entered Extension 4562 | -6/Extension | Lost 3 parts (1n2u) 4598 | -6/Extension | Spotted B-75 Beast 4618 | -6/Extension | Crushed by falling debris 4646 | -6/Extension | Spotted B-75 Beast 4649 | -6/Extension | Lost 3 parts (1n2u) 4666 | -6/Extension | Core integrity fell below 50% 4669 | -6/Extension | Core integrity fell below 20% 4672 | -6/Extension | Destroyed by Y-54 Guardian with Gatling Laser Last Messages --------------- System corrupted by crushing effect (+2). Signal Interpreter destroyed. System corrupted by crushing effect (+2). The unstable cave ceiling collapses. Acquired 5 matter. Imp. Ion Engine destroyed. U-05 Engineer builds a Wall. Gravmag Array destroyed. U-05 Engineer builds a Wall. The unstable cave ceiling collapses. Gauss Cannon destroyed. Imp. Light Armor Plating destroyed. Imp. Cooling System destroyed. K-01 Serf destroyed. U-05 Engineer builds a Wall. Hvy. Mace destroyed. Critical hit (Meltdown: +320). U-05 Engineer builds a Wall. R-10 Processor collects Wheel. Knocked back. Map ----- +----------------------------------------------------+ | ?????????????????????????????????????????????????? | | ?????????????????????????????????????????????????? | | ?????????????????????????????????????????????????? | | ?????????????????????????????????????????????????? | | ?????????????????????????????????????????????????? | | ?????????????????? ??????????????????????????????? | | ?????????????????? ??????????????????????????????? | | ?????????????????# #?????????????????????????????? | | ?????????????????# #????????? #??????????????????? | | ?????????????????# #????????? #??????????????????? | | ?????????????????# #?######?? #??????????????????? | | ???????????????### ### ## ### ###????????????????? | | ???????????????#"" "" "" ""#????????????????? | | ???????????????# " " Y " " #????????????????? | | ???????????????# Y #????????????????? | | ???????????????# #????????????????? | | ################ ###########??????? | | ???????? | | ????????? | | ?????????? | | R ???????????? | | R %kR R ?????????????? | | ####"########### = BB #????????????????? | | ???## ##???????# BB #????????????????? | | ????#####?????## BB #????????????????? | | ?????## ##????## BB% @% #????????????????? | | ??????########## u #????????????????? | | ???????## ### ######u#"""#######????????????????? | | ????????#########???#"#??????????????????????????? | | ????????????????????#????????????????????????????? | | | | | | | | | | | | | | | | | | | | | | | | | | | | | | | | | | | | | | | | | +----------------------------------------------------+ Best States ------------- Heat Dissipation 64 Energy Generation 27 Energy Capacity 480 Matter Stores 300 Matter Capacity 300 Sight Range 22 Robot Scan Range 14 Terrain Scan Range 14 Terrain Scan Density 110 Additional Mass Support 6 Armor Coverage 150 Evasion (%) 56 Targeting Accuracy 20 Core Analysis 6 Recoil Reduction 3 Item Schematics ----------------- Wheel | -8/Materials | Scanalyzed Signal Interpreter | -8/Materials | Scanalyzed Robot Schematics ------------------ None Fabricated ------------ Nothing Alien Tech Used ----------------- None Achievements -------------- None Challenges ------------ None Game ------ Seed HeavyStructuralLink Manual? 0 Play Time 00:52:17 Cumulative 28.1 hours Start 2024.04.21 @ 21:24:18 End 2024.04.21 @ 22:33:31 Sessions 1 Manual Loads 0 Difficulty Rogue Special Mode None Game No. 43 Rogue 42 Adventurer 1 Explorer 0 Win Type - Total 0 Types 0/0/0/0/0/0/0/0/0 Lore% 26 Gallery% 32 Achievement% 26 Wizard Run 0 Options --------- Layout 1 ASCII 0 Keyboard 0 Movement Mouse Keybinds 0 Fullscreen 1 Font 24/Smallcaps Map View 50x40 Zoom Use 0% Tactical HUD 0 Map Filters NONE Filters NONE Steam 1 RUN: 3365758a-0e0f-4946-a582-dfa138477ba3